[Event "Live Chess"]
[Site "Chess.com"]
[Date "2024.06.02"]
[Round "-"]
[White "edward33_24h"]
[Black "Dhaydon19"]
[Result "0-1"]
[WhiteElo "624"]
[BlackElo "2677"]
[TimeControl "300"]
[EndTime "22:20:06 PDT"]
[Termination "Dhaydon19 won by resignation"]

1. e4 {[%clk 0:04:53.9]} 1... c6 {[%clk 0:04:59.2]} 2. Bc4 {[%clk 0:04:48.3]}
2... d5 {[%clk 0:04:58.9]} 3. exd5 {[%clk 0:04:45.2]} 3... cxd5 {[%clk 0:04:58]}
4. Bb5+ {[%clk 0:04:41.1]} 4... Nc6 {[%clk 0:04:57]} 5. Bxc6+ {[%clk 0:04:36.6]}
5... bxc6 {[%clk 0:04:55.6]} 6. d4 {[%clk 0:04:34.6]} 6... Qc7 {[%clk
0:04:54.1]} 7. Nf3 {[%clk 0:04:32.5]} 7... Nf6 {[%clk 0:04:53.4]} 8. Be3 {[%clk
0:04:26.5]} 8... Ba6 {[%clk 0:04:51.9]} 9. Nc3 {[%clk 0:04:19]} 9... e6 {[%clk
0:04:50]} 10. Na4 {[%clk 0:04:15.3]} 10... Bd6 {[%clk 0:04:44.4]} 11. Nc5 {[%clk
0:04:13]} 11... Bxc5 {[%clk 0:04:42]} 12. dxc5 {[%clk 0:04:10.9]} 12... e5
{[%clk 0:04:40.9]} 13. Ng5 {[%clk 0:04:06.6]} 13... h6 {[%clk 0:04:38.6]} 14.
Nf3 {[%clk 0:04:02.8]} 14... O-O {[%clk 0:04:35.9]} 15. Qd2 {[%clk 0:03:57.4]}
15... Ne4 {[%clk 0:04:33.7]} 16. Qe2 {[%clk 0:03:53.7]} 16... Bxe2 {[%clk
0:04:31.2]} 0-1

[Event "Live Chess"]
[Site "Chess.com"]
[Date "2024.06.02"]
[Round "-"]
[White "juniortay"]
[Black "Cruiseylee78"]
[Result "1-0"]
[WhiteElo "2414"]
[BlackElo "1675"]
[TimeControl "300"]
[EndTime "22:20:27 PDT"]
[Termination "juniortay won by resignation"]

1. e4 {[%clk 0:04:58.3]} 1... d6 {[%clk 0:04:53.6]} 2. Nf3 {[%clk 0:04:58.2]}
2... Nd7 {[%clk 0:04:50.5]} 3. Nc3 {[%clk 0:04:58.1]} 3... e5 {[%clk 0:04:49.4]}
4. d4 {[%clk 0:04:57.5]} 4... c6 {[%clk 0:04:48.5]} 5. Bc4 {[%clk 0:04:56.5]}
5... h6 {[%clk 0:04:44.9]} 6. a4 {[%clk 0:04:55.7]} 6... Qc7 {[%clk 0:04:43.7]}
7. O-O {[%clk 0:04:53.9]} 7... Ngf6 {[%clk 0:04:42.5]} 8. Qe2 {[%clk 0:04:53.2]}
8... Be7 {[%clk 0:04:41.4]} 9. Rd1 {[%clk 0:04:52]} 9... Nf8 {[%clk 0:04:37.4]}
10. b3 {[%clk 0:04:51.3]} 10... g5 {[%clk 0:04:35.3]} 11. Bb2 {[%clk 0:04:48.2]}
11... Ng6 {[%clk 0:04:34.2]} 12. dxe5 {[%clk 0:04:46.2]} 12... dxe5 {[%clk
0:04:31.9]} 13. Nd5 {[%clk 0:04:42.3]} 13... cxd5 {[%clk 0:04:25.8]} 14. exd5
{[%clk 0:04:40.7]} 14... Nf4 {[%clk 0:04:15]} 15. Qe1 {[%clk 0:04:36.8]} 15...
a6 {[%clk 0:04:03.4]} 16. Nxe5 {[%clk 0:04:32.2]} 16... b5 {[%clk 0:03:56.7]}
17. axb5 {[%clk 0:04:29.7]} 17... Bb7 {[%clk 0:03:42.4]} 18. Nc6 {[%clk
0:03:59.6]} 18... Bxc6 {[%clk 0:03:29.5]} 19. Bxf6 {[%clk 0:03:57]} 19... O-O
{[%clk 0:03:14.6]} 20. Bxe7 {[%clk 0:03:51.5]} 20... Rfe8 {[%clk 0:03:12.9]} 21.
d6 {[%clk 0:03:47.1]} 21... Nxg2 {[%clk 0:03:08.2]} 22. Qe5 {[%clk 0:03:09.6]}
22... Bd7 {[%clk 0:02:44]} 23. dxc7 {[%clk 0:03:03.8]} 23... Rxe7 {[%clk
0:02:42]} 24. Qxe7 {[%clk 0:03:02]} 1-0

[Event "Live Chess"]
[Site "Chess.com"]
[Date "2024.06.02"]
[Round "-"]
[White "booktrunk"]
[Black "febray_27"]
[Result "0-1"]
[WhiteElo "1524"]
[BlackElo "2002"]
[TimeControl "300"]
[EndTime "22:21:05 PDT"]
[Termination "febray_27 won by resignation"]

1. d4 {[%clk 0:04:54.2]} 1... Nf6 {[%clk 0:04:58.3]} 2. Nc3 {[%clk 0:04:46]}
2... d5 {[%clk 0:04:48.7]} 3. Bf4 {[%clk 0:04:34.5]} 3... g6 {[%clk 0:04:41]} 4.
Nb5 {[%clk 0:04:31.7]} 4... Na6 {[%clk 0:04:31.9]} 5. e3 {[%clk 0:04:29.7]} 5...
Bg7 {[%clk 0:04:26.4]} 6. Nf3 {[%clk 0:04:22.4]} 6... O-O {[%clk 0:04:24.8]} 7.
Nc3 {[%clk 0:04:18.1]} 7... Bf5 {[%clk 0:04:20.8]} 8. Bxa6 {[%clk 0:04:15.1]}
8... bxa6 {[%clk 0:04:19.2]} 9. O-O {[%clk 0:04:13]} 9... Rc8 {[%clk 0:04:11.2]}
10. h3 {[%clk 0:04:10.4]} 10... c5 {[%clk 0:03:52.6]} 11. dxc5 {[%clk
0:04:00.1]} 11... Rxc5 {[%clk 0:03:51.1]} 12. g4 {[%clk 0:03:55.2]} 12... Be4
{[%clk 0:03:40.9]} 13. Nxe4 {[%clk 0:03:52.6]} 13... Nxe4 {[%clk 0:03:34.4]} 14.
Nd4 {[%clk 0:03:51.2]} 14... e5 {[%clk 0:03:30.5]} 15. Nb3 {[%clk 0:03:50]}
15... exf4 {[%clk 0:03:20.5]} 16. Nxc5 {[%clk 0:03:47.2]} 16... Nxc5 {[%clk
0:03:19.8]} 17. exf4 {[%clk 0:03:46.3]} 17... Bxb2 {[%clk 0:03:02.6]} 18. Rb1
{[%clk 0:03:44.9]} 18... Bg7 {[%clk 0:02:49.4]} 19. Qe2 {[%clk 0:03:37.2]} 19...
Ne4 {[%clk 0:02:44.1]} 20. Qd3 {[%clk 0:03:32.3]} 20... Qa5 {[%clk 0:02:30.4]}
21. Rfd1 {[%clk 0:03:23.2]} 21... Nc3 {[%clk 0:02:23.5]} 22. Rbc1 {[%clk
0:03:16.4]} 22... Nxd1 {[%clk 0:02:20.8]} 23. Rxd1 {[%clk 0:03:14.6]} 23... d4
{[%clk 0:02:19.2]} 24. Kg2 {[%clk 0:03:11.3]} 24... Qxa2 {[%clk 0:02:17.6]} 25.
Rd2 {[%clk 0:03:06.4]} 25... Rc8 {[%clk 0:02:13.5]} 26. h4 {[%clk 0:03:00.9]}
26... Qd5+ {[%clk 0:02:11.3]} 27. f3 {[%clk 0:02:58.7]} 27... Rc3 {[%clk
0:02:08.6]} 28. Qxa6 {[%clk 0:02:55.3]} 28... Qxf3+ {[%clk 0:02:07.2]} 0-1

[Event "Live Chess"]
[Site "Chess.com"]
[Date "2024.06.02"]
[Round "-"]
[White "Tushinskiy"]
[Black "elephantgerrald"]
[Result "1-0"]
[WhiteElo "2276"]
[BlackElo "814"]
[TimeControl "300"]
[EndTime "22:21:54 PDT"]
[Termination "Tushinskiy won by checkmate"]

1. d4 {[%clk 0:04:54.6]} 1... d5 {[%clk 0:04:58.8]} 2. c3 {[%clk 0:04:54.5]}
2... Nc6 {[%clk 0:04:57.4]} 3. Nf3 {[%clk 0:04:54.4]} 3... Nf6 {[%clk
0:04:56.5]} 4. Bf4 {[%clk 0:04:54.3]} 4... e6 {[%clk 0:04:55.8]} 5. Nbd2 {[%clk
0:04:53.4]} 5... Bd6 {[%clk 0:04:55.1]} 6. Bg3 {[%clk 0:04:53.3]} 6... Bxg3
{[%clk 0:04:54]} 7. hxg3 {[%clk 0:04:53.2]} 7... O-O {[%clk 0:04:53.3]} 8. Qc2
{[%clk 0:04:52.6]} 8... h6 {[%clk 0:04:52.6]} 9. e4 {[%clk 0:04:52.1]} 9... dxe4
{[%clk 0:04:51.5]} 10. Nxe4 {[%clk 0:04:52]} 10... Nxe4 {[%clk 0:04:50.7]} 11.
Qxe4 {[%clk 0:04:51.9]} 11... f5 {[%clk 0:04:47.5]} 12. Qe3 {[%clk 0:04:50.9]}
12... Bd7 {[%clk 0:04:45.8]} 13. Bc4 {[%clk 0:04:50.2]} 13... Re8 {[%clk
0:04:43.8]} 14. O-O-O {[%clk 0:04:49.2]} 14... b6 {[%clk 0:04:39.7]} 15. Ne5
{[%clk 0:04:45.4]} 15... Nxe5 {[%clk 0:04:38.4]} 16. Qxe5 {[%clk 0:04:45.3]}
16... Qg5+ {[%clk 0:04:32.7]} 17. Kb1 {[%clk 0:04:43.3]} 17... Ba4 {[%clk
0:04:28.5]} 18. Rde1 {[%clk 0:04:38.6]} 18... Qd2 {[%clk 0:04:24.8]} 19. Qxf5
{[%clk 0:04:35.7]} 19... Rf8 {[%clk 0:04:20.3]} 20. Qxe6+ {[%clk 0:04:28.6]}
20... Kh8 {[%clk 0:04:18.8]} 21. Re2 {[%clk 0:04:25.5]} 21... Qg5 {[%clk
0:03:59.9]} 22. f4 {[%clk 0:04:22.4]} 22... Qa5 {[%clk 0:03:51.5]} 23. Rxh6+
{[%clk 0:04:19.7]} 23... gxh6 {[%clk 0:03:49.8]} 24. Qxh6# {[%clk 0:04:19.6]}
1-0

[Event "Live Chess"]
[Site "Chess.com"]
[Date "2024.06.02"]
[Round "-"]
[White "Duke_of_Bebington"]
[Black "IgorSchukin"]
[Result "1-0"]
[WhiteElo "1663"]
[BlackElo "1771"]
[TimeControl "300"]
[EndTime "22:22:47 PDT"]
[Termination "Duke_of_Bebington won by checkmate"]

1. e4 {[%clk 0:04:55.7]} 1... e5 {[%clk 0:04:58.8]} 2. Nf3 {[%clk 0:04:54.2]}
2... Nc6 {[%clk 0:04:58.3]} 3. Bc4 {[%clk 0:04:52.7]} 3... Nf6 {[%clk
0:04:57.3]} 4. O-O {[%clk 0:04:50]} 4... Bc5 {[%clk 0:04:52.4]} 5. c3 {[%clk
0:04:45.7]} 5... Nxe4 {[%clk 0:04:51.3]} 6. d4 {[%clk 0:04:38.3]} 6... exd4
{[%clk 0:04:46.7]} 7. cxd4 {[%clk 0:04:36]} 7... Be7 {[%clk 0:04:44.5]} 8. d5
{[%clk 0:04:20]} 8... Na5 {[%clk 0:04:39.4]} 9. Bd3 {[%clk 0:04:08.6]} 9... Nf6
{[%clk 0:04:34.9]} 10. Nc3 {[%clk 0:04:04.7]} 10... b6 {[%clk 0:04:30.2]} 11.
Re1 {[%clk 0:04:02.2]} 11... O-O {[%clk 0:04:28.3]} 12. b4 {[%clk 0:03:24.6]}
12... Bxb4 {[%clk 0:04:24.1]} 13. Bb2 {[%clk 0:03:22.8]} 13... Bb7 {[%clk
0:04:14.8]} 14. Re5 {[%clk 0:03:11.3]} 14... d6 {[%clk 0:04:11]} 15. Rg5 {[%clk
0:03:08.5]} 15... h6 {[%clk 0:04:07.7]} 16. Rg3 {[%clk 0:03:06.1]} 16... Bxc3
{[%clk 0:03:48.4]} 17. Bxc3 {[%clk 0:03:04.8]} 17... Bxd5 {[%clk 0:03:46.2]} 18.
Qd2 {[%clk 0:03:01.2]} 18... Bxf3 {[%clk 0:03:41.6]} 19. Qxh6 {[%clk 0:02:54.9]}
19... Bg4 {[%clk 0:03:31.2]} 20. Rxg4 {[%clk 0:02:51.9]} 20... g6 {[%clk
0:03:23.8]} 21. Rxg6+ {[%clk 0:02:39.1]} 21... fxg6 {[%clk 0:03:21.9]} 22. Qxg6+
{[%clk 0:02:36.8]} 22... Kh8 {[%clk 0:03:20.8]} 23. Qh7# {[%clk 0:02:34.7]} 1-0

[Event "Live Chess"]
[Site "Chess.com"]
[Date "2024.06.02"]
[Round "-"]
[White "Dhaydon19"]
[Black "KeithArkell"]
[Result "1-0"]
[WhiteElo "2680"]
[BlackElo "2425"]
[TimeControl "300"]
[EndTime "22:23:31 PDT"]
[Termination "Dhaydon19 won by resignation"]

1. d4 {[%clk 0:04:58]} 1... e6 {[%clk 0:04:59]} 2. Nf3 {[%clk 0:04:57.5]} 2...
Nf6 {[%clk 0:04:58.2]} 3. g3 {[%clk 0:04:57]} 3... c5 {[%clk 0:04:57.5]} 4. Bg2
{[%clk 0:04:56.4]} 4... cxd4 {[%clk 0:04:57]} 5. Nxd4 {[%clk 0:04:56.1]} 5...
Nc6 {[%clk 0:04:56.5]} 6. O-O {[%clk 0:04:54.6]} 6... Be7 {[%clk 0:04:54.9]} 7.
c4 {[%clk 0:04:53.8]} 7... O-O {[%clk 0:04:53.4]} 8. Nc3 {[%clk 0:04:53.1]} 8...
Nxd4 {[%clk 0:04:52.2]} 9. Qxd4 {[%clk 0:04:51.7]} 9... d6 {[%clk 0:04:51.5]}
10. Rd1 {[%clk 0:04:50.6]} 10... a6 {[%clk 0:04:50.6]} 11. Bg5 {[%clk
0:04:47.7]} 11... h6 {[%clk 0:04:48.8]} 12. Bxf6 {[%clk 0:04:43.9]} 12... Bxf6
{[%clk 0:04:48.2]} 13. Qxd6 {[%clk 0:04:42.9]} 13... Qxd6 {[%clk 0:04:47.6]} 14.
Rxd6 {[%clk 0:04:41.8]} 14... Bxc3 {[%clk 0:04:46.9]} 15. bxc3 {[%clk 0:04:41]}
15... Re8 {[%clk 0:04:41.6]} 16. Rb1 {[%clk 0:04:36.6]} 16... Rb8 {[%clk
0:04:39.1]} 17. Rxa6 {[%clk 0:04:31.3]} 17... bxa6 {[%clk 0:04:30.2]} 18. Rxb8
{[%clk 0:04:29]} 18... Kf8 {[%clk 0:04:28.7]} 19. Bc6 {[%clk 0:04:24.1]} 19...
Bd7 {[%clk 0:04:27.7]} 20. Rxe8+ {[%clk 0:04:17.3]} 20... Kxe8 {[%clk
0:04:26.5]} 21. Bb7 {[%clk 0:04:15.9]} 21... Ke7 {[%clk 0:04:15.3]} 22. Bxa6
{[%clk 0:04:13.6]} 22... Kd6 {[%clk 0:04:14]} 23. f4 {[%clk 0:04:11.2]} 23...
Kc5 {[%clk 0:04:11.3]} 24. Kf2 {[%clk 0:04:10.3]} 24... Ba4 {[%clk 0:03:46.2]}
25. Ke3 {[%clk 0:03:58.9]} 25... g5 {[%clk 0:03:35.6]} 26. fxg5 {[%clk
0:03:55.4]} 26... hxg5 {[%clk 0:03:35]} 27. h4 {[%clk 0:03:55]} 27... gxh4
{[%clk 0:03:34.4]} 28. gxh4 {[%clk 0:03:54.5]} 28... Bc2 {[%clk 0:03:32.9]} 29.
Kf4 {[%clk 0:03:51.6]} 29... f6 {[%clk 0:03:32.1]} 30. e4 {[%clk 0:03:48.9]}
30... Bd1 {[%clk 0:03:24.4]} 31. Bb5 {[%clk 0:03:45.8]} 31... Bh5 {[%clk
0:03:20.7]} 32. e5 {[%clk 0:03:43.8]} 32... fxe5+ {[%clk 0:03:13.4]} 33. Kxe5
{[%clk 0:03:42.8]} 1-0

[Event "Live Chess"]
[Site "Chess.com"]
[Date "2024.06.02"]
[Round "-"]
[White "juniortay"]
[Black "booktrunk"]
[Result "1-0"]
[WhiteElo "2414"]
[BlackElo "1524"]
[TimeControl "300"]
[EndTime "22:23:32 PDT"]
[Termination "juniortay won by checkmate"]

1. e4 {[%clk 0:04:57.4]} 1... b6 {[%clk 0:04:54.2]} 2. Nf3 {[%clk 0:04:57.3]}
2... Bb7 {[%clk 0:04:47.2]} 3. Nc3 {[%clk 0:04:56.9]} 3... h6 {[%clk 0:04:42.5]}
4. d4 {[%clk 0:04:54.7]} 4... e6 {[%clk 0:04:36.4]} 5. Bd3 {[%clk 0:04:53.8]}
5... c5 {[%clk 0:04:30]} 6. O-O {[%clk 0:04:51]} 6... cxd4 {[%clk 0:04:26]} 7.
Nxd4 {[%clk 0:04:49.5]} 7... a6 {[%clk 0:04:24.6]} 8. a4 {[%clk 0:04:47.8]} 8...
Be7 {[%clk 0:04:19.8]} 9. Qg4 {[%clk 0:04:42.8]} 9... Bg5 {[%clk 0:04:14.1]} 10.
f4 {[%clk 0:04:39.3]} 10... Bf6 {[%clk 0:04:03.9]} 11. Be3 {[%clk 0:04:38]}
11... g5 {[%clk 0:04:00.9]} 12. e5 {[%clk 0:04:29.5]} 12... Be7 {[%clk
0:03:56.6]} 13. f5 {[%clk 0:04:28.6]} 13... exf5 {[%clk 0:03:53.8]} 14. Qxf5
{[%clk 0:04:24.1]} 14... f6 {[%clk 0:03:47.9]} 15. Qg6+ {[%clk 0:04:19.1]} 15...
Kf8 {[%clk 0:03:46.6]} 16. Nf5 {[%clk 0:04:12.6]} 16... Qe8 {[%clk 0:03:42]} 17.
Qg7# {[%clk 0:04:10.6]} 1-0

[Event "Live Chess"]
[Site "Chess.com"]
[Date "2024.06.02"]
[Round "-"]
[White "KGreenGator"]
[Black "Dhaydon19"]
[Result "0-1"]
[WhiteElo "1783"]
[BlackElo "2680"]
[TimeControl "300"]
[EndTime "22:25:09 PDT"]
[Termination "Dhaydon19 won by resignation"]

1. c4 {[%clk 0:04:57]} 1... e6 {[%clk 0:04:59.2]} 2. d4 {[%clk 0:04:54.7]} 2...
d5 {[%clk 0:04:58.5]} 3. Nc3 {[%clk 0:04:53.1]} 3... Nf6 {[%clk 0:04:57.1]} 4.
e3 {[%clk 0:04:52.2]} 4... dxc4 {[%clk 0:04:56]} 5. Bxc4 {[%clk 0:04:49.4]} 5...
a6 {[%clk 0:04:55.4]} 6. Nf3 {[%clk 0:04:47.8]} 6... b5 {[%clk 0:04:54.4]} 7.
Bd3 {[%clk 0:04:45.5]} 7... Bb7 {[%clk 0:04:54]} 8. O-O {[%clk 0:04:37.2]} 8...
Nbd7 {[%clk 0:04:52.9]} 9. Re1 {[%clk 0:04:36]} 9... c5 {[%clk 0:04:51.2]} 10.
dxc5 {[%clk 0:04:33.6]} 10... Nxc5 {[%clk 0:04:49.8]} 11. Bc2 {[%clk 0:04:32.7]}
11... Qb6 {[%clk 0:04:48.7]} 12. Nd4 {[%clk 0:04:27.6]} 12... Rd8 {[%clk
0:04:46.8]} 13. Qe2 {[%clk 0:04:23.5]} 13... Be7 {[%clk 0:04:45.6]} 14. a3
{[%clk 0:04:21.8]} 14... O-O {[%clk 0:04:44.2]} 15. b4 {[%clk 0:04:20.4]} 15...
Ncd7 {[%clk 0:04:43.3]} 16. Bb2 {[%clk 0:04:18.3]} 16... Ne5 {[%clk 0:04:42]}
17. f4 {[%clk 0:04:11.2]} 17... Nc4 {[%clk 0:04:40.8]} 18. Bc1 {[%clk
0:04:09.1]} 18... Rxd4 {[%clk 0:04:36.3]} 19. exd4 {[%clk 0:04:05.2]} 19...
Qxd4+ {[%clk 0:04:35.2]} 0-1

[Event "Live Chess"]
[Site "Chess.com"]
[Date "2024.06.02"]
[Round "-"]
[White "IgorSchukin"]
[Black "Tushinskiy"]
[Result "0-1"]
[WhiteElo "1770"]
[BlackElo "2277"]
[TimeControl "300"]
[EndTime "22:25:10 PDT"]
[Termination "Tushinskiy won by resignation"]

1. e4 {[%clk 0:04:57.1]} 1... e5 {[%clk 0:04:59.2]} 2. Nf3 {[%clk 0:04:55.5]}
2... d6 {[%clk 0:04:59.1]} 3. Nc3 {[%clk 0:04:54.3]} 3... Bg4 {[%clk 0:04:58.5]}
4. Be2 {[%clk 0:04:52.9]} 4... Nd7 {[%clk 0:04:57.8]} 5. h3 {[%clk 0:04:51.7]}
5... Bh5 {[%clk 0:04:56.7]} 6. g4 {[%clk 0:04:50.3]} 6... Bg6 {[%clk 0:04:55.4]}
7. d4 {[%clk 0:04:49.4]} 7... Ngf6 {[%clk 0:04:54.1]} 8. Bg5 {[%clk 0:04:44.3]}
8... c6 {[%clk 0:04:52.5]} 9. dxe5 {[%clk 0:04:35.8]} 9... dxe5 {[%clk
0:04:52.4]} 10. Bxf6 {[%clk 0:04:32.1]} 10... Qxf6 {[%clk 0:04:50.1]} 11. Qd2
{[%clk 0:04:24.4]} 11... O-O-O {[%clk 0:04:47.6]} 12. Qe3 {[%clk 0:04:23.1]}
12... Bc5 {[%clk 0:04:46.2]} 13. Qg5 {[%clk 0:04:14.7]} 13... Qe6 {[%clk
0:04:41.7]} 14. O-O-O {[%clk 0:04:10.3]} 14... Bxf2 {[%clk 0:04:35.4]} 15. Rhf1
{[%clk 0:03:56.4]} 15... f6 {[%clk 0:04:32.5]} 16. Qd2 {[%clk 0:03:47.4]} 16...
Bb6 {[%clk 0:04:30.1]} 17. Na4 {[%clk 0:03:41.2]} 17... Qxa2 {[%clk 0:04:28.1]}
18. Nxb6+ {[%clk 0:03:39.7]} 18... Nxb6 {[%clk 0:04:28]} 0-1

[Event "Live Chess"]
[Site "Chess.com"]
[Date "2024.06.02"]
[Round "-"]
[White "Isambard_Thomas"]
[Black "Cruiseylee78"]
[Result "1-0"]
[WhiteElo "2164"]
[BlackElo "1674"]
[TimeControl "300"]
[EndTime "22:26:32 PDT"]
[Termination "Isambard_Thomas won by resignation"]

1. d4 {[%clk 0:04:58.1]} 1... Nf6 {[%clk 0:04:55.2]} 2. Nf3 {[%clk 0:04:57.5]}
2... d6 {[%clk 0:04:52.8]} 3. Bg5 {[%clk 0:04:57.1]} 3... Nbd7 {[%clk
0:04:52.6]} 4. e3 {[%clk 0:04:56.7]} 4... e5 {[%clk 0:04:51.7]} 5. dxe5 {[%clk
0:04:52.6]} 5... dxe5 {[%clk 0:04:51.6]} 6. Bc4 {[%clk 0:04:48.1]} 6... c6
{[%clk 0:04:50.3]} 7. Nbd2 {[%clk 0:04:46.7]} 7... b5 {[%clk 0:04:48.1]} 8. Bb3
{[%clk 0:04:45.6]} 8... a5 {[%clk 0:04:46.9]} 9. c3 {[%clk 0:04:35.5]} 9... Nc5
{[%clk 0:04:45.1]} 10. Bc2 {[%clk 0:04:26.4]} 10... Bd6 {[%clk 0:04:41]} 11. b4
{[%clk 0:04:12.7]} 11... axb4 {[%clk 0:04:39]} 12. cxb4 {[%clk 0:04:11.9]} 12...
Na6 {[%clk 0:04:33.4]} 13. a3 {[%clk 0:04:08.3]} 13... Qc7 {[%clk 0:04:29.8]}
14. Bxf6 {[%clk 0:04:04.8]} 14... gxf6 {[%clk 0:04:27.6]} 15. Ne4 {[%clk
0:04:03.8]} 15... Be7 {[%clk 0:04:19.1]} 16. O-O {[%clk 0:03:19.2]} 16... Rg8
{[%clk 0:04:16.6]} 17. Ng3 {[%clk 0:03:07.9]} 17... Bg4 {[%clk 0:04:10.3]} 18.
Bxh7 {[%clk 0:03:03.4]} 18... Rg7 {[%clk 0:04:07.5]} 19. Bf5 {[%clk 0:02:58.3]}
19... Bxf5 {[%clk 0:03:58.5]} 20. Nxf5 {[%clk 0:02:57.1]} 20... Rg6 {[%clk
0:03:50]} 21. N3h4 {[%clk 0:02:41.6]} 21... Rg8 {[%clk 0:03:46.1]} 22. Nxe7
{[%clk 0:02:21.4]} 22... Qxe7 {[%clk 0:03:44.2]} 23. Nf5 {[%clk 0:02:20.3]}
23... Qe6 {[%clk 0:03:40]} 24. Nd6+ {[%clk 0:02:12.4]} 24... Kf8 {[%clk
0:03:36.6]} 25. Ne4 {[%clk 0:02:02.7]} 25... Rd8 {[%clk 0:03:33]} 26. Qxd8+
{[%clk 0:02:00.8]} 1-0

[Event "Live Chess"]
[Site "Chess.com"]
[Date "2024.06.02"]
[Round "-"]
[White "MagnersCarlsberg2870"]
[Black "RockTroll"]
[Result "0-1"]
[WhiteElo "1837"]
[BlackElo "2180"]
[TimeControl "300"]
[EndTime "22:26:34 PDT"]
[Termination "RockTroll won by resignation"]

1. d4 {[%clk 0:04:57.1]} 1... Nf6 {[%clk 0:04:59.4]} 2. Nf3 {[%clk 0:04:55.4]}
2... g6 {[%clk 0:04:59]} 3. Nc3 {[%clk 0:04:54.3]} 3... Bg7 {[%clk 0:04:58.6]}
4. e4 {[%clk 0:04:53.6]} 4... d6 {[%clk 0:04:58.1]} 5. h3 {[%clk 0:04:52.9]}
5... a6 {[%clk 0:04:57]} 6. a4 {[%clk 0:04:51.4]} 6... b6 {[%clk 0:04:56.1]} 7.
Bc4 {[%clk 0:04:50]} 7... e6 {[%clk 0:04:54.7]} 8. Qe2 {[%clk 0:04:47.4]} 8...
Bb7 {[%clk 0:04:53.4]} 9. Ng5 {[%clk 0:04:43.5]} 9... h6 {[%clk 0:04:50.2]} 10.
Bxe6 {[%clk 0:04:39.5]} 10... hxg5 {[%clk 0:04:48.4]} 11. e5 {[%clk 0:04:35.8]}
11... dxe5 {[%clk 0:04:44.4]} 12. dxe5 {[%clk 0:04:33.3]} 12... Nfd7 {[%clk
0:04:39.1]} 13. Bxf7+ {[%clk 0:04:30.8]} 13... Kxf7 {[%clk 0:04:37.4]} 14. e6+
{[%clk 0:04:30.1]} 14... Kf6 {[%clk 0:04:32.6]} 15. Bxg5+ {[%clk 0:04:18.8]}
15... Kxg5 {[%clk 0:04:31]} 16. O-O-O {[%clk 0:04:09.5]} 16... Bxc3 {[%clk
0:04:26.2]} 17. bxc3 {[%clk 0:04:01.8]} 17... Kh6 {[%clk 0:04:25.5]} 18. Qe3+
{[%clk 0:03:44.9]} 18... Qg5 {[%clk 0:04:24.2]} 19. f4 {[%clk 0:03:40.7]} 19...
Qc5 {[%clk 0:04:16.8]} 20. Rd4 {[%clk 0:03:36.5]} 20... Nf6 {[%clk 0:04:12.5]}
21. f5+ {[%clk 0:03:33.6]} 21... g5 {[%clk 0:04:12]} 22. h4 {[%clk 0:03:29.9]}
22... Qxf5 {[%clk 0:03:34.8]} 23. hxg5+ {[%clk 0:03:25.5]} 23... Kg6 {[%clk
0:03:34.1]} 24. Rxh8 {[%clk 0:03:20.2]} 24... Qxg5 {[%clk 0:03:22.6]} 25. Rf4
{[%clk 0:03:08.1]} 25... Nc6 {[%clk 0:03:15.3]} 26. Qd3+ {[%clk 0:03:02.5]}
26... Kg7 {[%clk 0:03:10.6]} 27. Rxa8 {[%clk 0:02:39.3]} 27... Qxf4+ {[%clk
0:03:09.4]} 28. Kb2 {[%clk 0:02:38.4]} 28... Bxa8 {[%clk 0:03:08.7]} 29. e7
{[%clk 0:02:35.1]} 29... Nxe7 {[%clk 0:03:06.7]} 30. Qd8 {[%clk 0:02:29.7]}
30... Qd6 {[%clk 0:03:00.3]} 31. Qxa8 {[%clk 0:02:27.6]} 31... a5 {[%clk
0:02:59.7]} 32. Qf3 {[%clk 0:02:24.3]} 32... Nc6 {[%clk 0:02:56.2]} 33. g4
{[%clk 0:02:22.9]} 33... Ne5 {[%clk 0:02:54.9]} 34. Qh3 {[%clk 0:02:13.6]} 34...
Nd5 {[%clk 0:02:53]} 35. g5 {[%clk 0:02:09.8]} 35... Nc4+ {[%clk 0:02:51.6]} 36.
Kb3 {[%clk 0:02:00.2]} 36... Nd2+ {[%clk 0:02:50.8]} 37. Kb2 {[%clk 0:01:57.3]}
37... Ne3 {[%clk 0:02:47.7]} 38. Kc1 {[%clk 0:01:35.4]} 38... Nec4 {[%clk
0:02:43.6]} 39. g6 {[%clk 0:01:29.7]} 39... Qa3+ {[%clk 0:02:42.4]} 40. Kd1
{[%clk 0:01:27.7]} 40... Qa1+ {[%clk 0:02:41.1]} 41. Ke2 {[%clk 0:01:26.8]}
41... Qf1+ {[%clk 0:02:37]} 42. Qxf1 {[%clk 0:01:18.9]} 42... Nxf1 {[%clk
0:02:36.9]} 43. Kxf1 {[%clk 0:01:18.1]} 43... Kxg6 {[%clk 0:02:36.6]} 44. Ke2
{[%clk 0:01:17.4]} 44... Kf5 {[%clk 0:02:36]} 45. Kd3 {[%clk 0:01:16.6]} 45...
Nb2+ {[%clk 0:02:34.3]} 46. Kd4 {[%clk 0:01:14.4]} 46... Nxa4 {[%clk 0:02:34.2]}
47. Kc4 {[%clk 0:01:13.4]} 47... Nc5 {[%clk 0:02:33.4]} 0-1

[Event "Live Chess"]
[Site "Chess.com"]
[Date "2024.06.02"]
[Round "-"]
[White "elephantgerrald"]
[Black "febray_27"]
[Result "0-1"]
[WhiteElo "814"]
[BlackElo "2002"]
[TimeControl "300"]
[EndTime "22:26:36 PDT"]
[Termination "febray_27 won by checkmate"]

1. e4 {[%clk 0:04:57.8]} 1... c5 {[%clk 0:04:56.1]} 2. Nf3 {[%clk 0:04:56.9]}
2... e6 {[%clk 0:04:53.1]} 3. Bc4 {[%clk 0:04:55.7]} 3... Nc6 {[%clk 0:04:51.1]}
4. O-O {[%clk 0:04:54.1]} 4... g6 {[%clk 0:04:47.3]} 5. d3 {[%clk 0:04:51.1]}
5... Bg7 {[%clk 0:04:46.8]} 6. Nc3 {[%clk 0:04:48.4]} 6... Nf6 {[%clk
0:04:44.8]} 7. Be3 {[%clk 0:04:46.4]} 7... b6 {[%clk 0:04:42.9]} 8. b3 {[%clk
0:04:38.2]} 8... O-O {[%clk 0:04:41.8]} 9. a4 {[%clk 0:04:36.2]} 9... a6 {[%clk
0:04:31.9]} 10. h3 {[%clk 0:04:29.9]} 10... d5 {[%clk 0:04:29.1]} 11. exd5
{[%clk 0:04:27.5]} 11... exd5 {[%clk 0:04:28.4]} 12. Bxd5 {[%clk 0:04:22.5]}
12... Nxd5 {[%clk 0:04:27.6]} 13. Nxd5 {[%clk 0:04:19.9]} 13... Qxd5 {[%clk
0:04:22.9]} 14. Ng5 {[%clk 0:04:16.7]} 14... Bxa1 {[%clk 0:04:20.5]} 15. Qxa1
{[%clk 0:04:14.4]} 15... Nd4 {[%clk 0:04:14.4]} 16. Bxd4 {[%clk 0:04:06.1]}
16... cxd4 {[%clk 0:04:11.3]} 17. c3 {[%clk 0:04:03.1]} 17... Qxg5 {[%clk
0:04:09.7]} 18. h4 {[%clk 0:03:59.1]} 18... Qxh4 {[%clk 0:04:06.9]} 19. cxd4
{[%clk 0:03:53.3]} 19... Bb7 {[%clk 0:04:04.3]} 20. f3 {[%clk 0:03:48.4]} 20...
Rad8 {[%clk 0:04:02.6]} 21. Qe1 {[%clk 0:03:46.9]} 21... Qxd4+ {[%clk
0:04:01.2]} 22. Rf2 {[%clk 0:03:45.2]} 22... Qxd3 {[%clk 0:03:59.1]} 23. Qe5
{[%clk 0:03:41.9]} 23... Rfe8 {[%clk 0:03:54.3]} 24. Qf6 {[%clk 0:03:38.3]}
24... Re1+ {[%clk 0:03:52.3]} 25. Kh2 {[%clk 0:03:33.8]} 25... Qd6+ {[%clk
0:03:38.9]} 26. Qxd6 {[%clk 0:03:29.6]} 26... Rxd6 {[%clk 0:03:38.8]} 27. f4
{[%clk 0:03:27.4]} 27... Rd5 {[%clk 0:03:32.5]} 28. Rc2 {[%clk 0:03:23.1]} 28...
Rh5+ {[%clk 0:03:27.2]} 29. Kg3 {[%clk 0:03:21.1]} 29... Re3+ {[%clk 0:03:26.7]}
30. Kg4 {[%clk 0:03:19.2]} 30... f5# {[%clk 0:03:20.6]} 0-1